[Event "Late-Titled-Tuesday-Blitz-February-20-2024"]
[Site "Chess.com"]
[Date "2024.02.20"]
[Round "9"]
[White "ahmedkandiliii"]
[Black "AsaHoffmann"]
[Result "0-1"]
[WhiteElo "2492"]
[BlackElo "2399"]
[TimeControl "180+1"]
[EndTime "15:44:10 PST"]
[Termination "AsaHoffmann won on time"]

1. e4 {[%clk 0:03:00.9]} 1... d6 {[%clk 0:02:55.7]} 2. d4 {[%clk 0:03:00.1]}
2... Nf6 {[%clk 0:02:53.3]} 3. Nc3 {[%clk 0:03:00.6]} 3... c6 {[%clk 0:02:52.9]}
4. a4 {[%clk 0:02:58.8]} 4... a5 {[%clk 0:02:52.3]} 5. Nf3 {[%clk 0:02:57.7]}
5... Bg4 {[%clk 0:02:51.9]} 6. h3 {[%clk 0:02:57.3]} 6... Bh5 {[%clk 0:02:51.7]}
7. Bf4 {[%clk 0:02:54.1]} 7... Nbd7 {[%clk 0:02:50.2]} 8. e5 {[%clk 0:02:51.7]}
8... Nd5 {[%clk 0:02:40.6]} 9. Nxd5 {[%clk 0:02:51]} 9... cxd5 {[%clk
0:02:40.5]} 10. exd6 {[%clk 0:02:51.5]} 10... exd6 {[%clk 0:02:37.9]} 11. Qe2+
{[%clk 0:02:51.5]} 11... Be7 {[%clk 0:02:37.3]} 12. Bxd6 {[%clk 0:02:51.3]}
12... Bxf3 {[%clk 0:02:31.6]} 13. gxf3 {[%clk 0:02:49.8]} 13... Kf8 {[%clk
0:02:26.4]} 14. Bxe7+ {[%clk 0:02:46.2]} 14... Qxe7 {[%clk 0:02:26.5]} 15. Qxe7+
{[%clk 0:02:46.4]} 15... Kxe7 {[%clk 0:02:26.4]} 16. Bb5 {[%clk 0:02:44.2]}
16... Nf6 {[%clk 0:02:25.3]} 17. O-O {[%clk 0:02:43.9]} 17... Kd6 {[%clk
0:02:24.9]} 18. Rfe1 {[%clk 0:02:40.8]} 18... Rac8 {[%clk 0:02:23.9]} 19. c3
{[%clk 0:02:40.5]} 19... Rc7 {[%clk 0:02:22.4]} 20. Re3 {[%clk 0:02:38.5]} 20...
Re7 {[%clk 0:02:21.7]} 21. Rae1 {[%clk 0:02:36.9]} 21... Rxe3 {[%clk 0:02:21.3]}
22. Rxe3 {[%clk 0:02:37.8]} 22... g6 {[%clk 0:02:11.3]} 23. Kg2 {[%clk
0:02:36.8]} 23... Nh5 {[%clk 0:02:08.4]} 24. h4 {[%clk 0:02:29.2]} 24... Ng7
{[%clk 0:02:04.7]} 25. Kh3 {[%clk 0:02:25.7]} 25... Ne6 {[%clk 0:02:00.8]} 26.
Kg3 {[%clk 0:02:24.4]} 26... h5 {[%clk 0:01:56.6]} 27. Re5 {[%clk 0:02:23.2]}
27... f6 {[%clk 0:01:47.6]} 28. Re3 {[%clk 0:02:22.3]} 28... Rg8 {[%clk
0:01:46.8]} 29. c4 {[%clk 0:02:11]} 29... Nxd4 {[%clk 0:01:43.2]} 30. Rd3 {[%clk
0:02:05.1]} 30... Nf5+ {[%clk 0:01:38.1]} 31. Kh3 {[%clk 0:02:04]} 31... d4
{[%clk 0:01:37.9]} 32. Rd1 {[%clk 0:01:39.2]} 32... Ke5 {[%clk 0:01:35.6]} 33.
c5 {[%clk 0:01:33.9]} 33... Rc8 {[%clk 0:01:34]} 34. Rc1 {[%clk 0:01:05]} 34...
Kd5 {[%clk 0:01:32.1]} 35. Bc4+ {[%clk 0:01:03.6]} 35... Ke5 {[%clk 0:01:28.8]}
36. Bd3 {[%clk 0:01:01]} 36... Kf4 {[%clk 0:01:18.9]} 37. Be4 {[%clk 0:00:57.4]}
37... Rc7 {[%clk 0:01:18.7]} 38. Bd5 {[%clk 0:00:53.7]} 38... g5 {[%clk
0:01:15.3]} 39. hxg5 {[%clk 0:00:33.5]} 39... fxg5 {[%clk 0:01:15.1]} 40. Re1
{[%clk 0:00:32.1]} 40... g4+ {[%clk 0:01:14.8]} 41. fxg4 {[%clk 0:00:30.6]}
41... hxg4+ {[%clk 0:01:14.7]} 42. Kg2 {[%clk 0:00:30.8]} 42... Rxc5 {[%clk
0:01:14.8]} 43. Re4+ {[%clk 0:00:28.7]} 43... Kg5 {[%clk 0:01:14.7]} 44. Bxb7
{[%clk 0:00:29.2]} 44... Rc2 {[%clk 0:01:12.3]} 45. Ba6 {[%clk 0:00:18.7]} 45...
Rxb2 {[%clk 0:01:06.2]} 46. Bc8 {[%clk 0:00:18.4]} 46... g3 {[%clk 0:01:03.5]}
47. Bxf5 {[%clk 0:00:17.1]} 47... Kxf5 {[%clk 0:00:59.3]} 48. Rxd4 {[%clk
0:00:17.6]} 48... gxf2 {[%clk 0:00:58.5]} 49. Rd5+ {[%clk 0:00:17.7]} 49... Ke4
{[%clk 0:00:58.2]} 50. Rxa5 {[%clk 0:00:18.3]} 50... Ke3 {[%clk 0:00:55.6]} 51.
Ra8 {[%clk 0:00:18]} 51... Ke2 {[%clk 0:00:49.7]} 52. Rf8 {[%clk 0:00:16.7]}
52... Ke1 {[%clk 0:00:47.4]} 53. Re8+ {[%clk 0:00:16.7]} 53... Re2 {[%clk
0:00:47.3]} 0-1

[Event "Late-Titled-Tuesday-Blitz-February-20-2024"]
[Site "Chess.com"]
[Date "2024.02.20"]
[Round "9"]
[White "Duhless"]
[Black "jefferyx"]
[Result "1/2-1/2"]
[WhiteElo "3088"]
[BlackElo "3040"]
[TimeControl "180+1"]
[EndTime "15:44:11 PST"]
[Termination "Game drawn by repetition"]

1. d4 {[%clk 0:03:00.9]} 1... g6 {[%clk 0:02:59.5]} 2. e4 {[%clk 0:03:00.8]}
2... Bg7 {[%clk 0:02:58]} 3. Nf3 {[%clk 0:03:00.6]} 3... d6 {[%clk 0:02:55.9]}
4. Bc4 {[%clk 0:03:00.8]} 4... e6 {[%clk 0:02:53]} 5. O-O {[%clk 0:02:58.5]}
5... Ne7 {[%clk 0:02:52.9]} 6. Re1 {[%clk 0:02:58.5]} 6... O-O {[%clk
0:02:51.7]} 7. Nbd2 {[%clk 0:02:58.3]} 7... a6 {[%clk 0:02:49.9]} 8. a4 {[%clk
0:02:55.5]} 8... b6 {[%clk 0:02:48.5]} 9. c3 {[%clk 0:02:49.4]} 9... Bb7 {[%clk
0:02:47.4]} 10. Bb3 {[%clk 0:02:49.2]} 10... Nd7 {[%clk 0:02:46.2]} 11. Nf1
{[%clk 0:02:49]} 11... c5 {[%clk 0:02:45.9]} 12. Ng3 {[%clk 0:02:48.6]} 12... h6
{[%clk 0:02:44.9]} 13. Bf4 {[%clk 0:02:46.9]} 13... e5 {[%clk 0:02:32.5]} 14.
Be3 {[%clk 0:02:47]} 14... b5 {[%clk 0:02:30.7]} 15. Qd2 {[%clk 0:02:38.8]}
15... Kh7 {[%clk 0:02:14.1]} 16. dxe5 {[%clk 0:02:26.3]} 16... dxe5 {[%clk
0:02:09.4]} 17. axb5 {[%clk 0:02:17.3]} 17... axb5 {[%clk 0:02:09.2]} 18. Rxa8
{[%clk 0:02:17]} 18... Bxa8 {[%clk 0:02:10.1]} 19. Rd1 {[%clk 0:02:16.7]} 19...
Bc6 {[%clk 0:02:03.8]} 20. Qd6 {[%clk 0:02:06.8]} 20... c4 {[%clk 0:01:58.8]}
21. Bc2 {[%clk 0:02:05.9]} 21... Re8 {[%clk 0:01:51.8]} 22. h4 {[%clk 0:01:54]}
22... Qb8 {[%clk 0:01:29.3]} 23. h5 {[%clk 0:01:44.6]} 23... Qxd6 {[%clk
0:01:28.8]} 24. Rxd6 {[%clk 0:01:44.3]} 24... Kg8 {[%clk 0:01:28.9]} 25. Nh4
{[%clk 0:01:31.9]} 25... Bf6 {[%clk 0:01:29]} 26. hxg6 {[%clk 0:00:38.9]} 26...
Bxh4 {[%clk 0:01:28.7]} 27. Nf5 {[%clk 0:00:37]} 27... Nxf5 {[%clk 0:01:13.1]}
28. exf5 {[%clk 0:00:37.2]} 28... Nb8 {[%clk 0:01:13.6]} 29. f6 {[%clk
0:00:22.6]} 29... Bd7 {[%clk 0:01:00]} 30. Ba7 {[%clk 0:00:15.6]} 30... Be6
{[%clk 0:00:57.8]} 31. Bd1 {[%clk 0:00:04.1]} 31... Nd7 {[%clk 0:00:36.2]} 32.
gxf7+ {[%clk 0:00:03.8]} 32... Bxf7 {[%clk 0:00:32.8]} 33. Rxd7 {[%clk 0:00:04]}
33... Bxf6 {[%clk 0:00:33.4]} 34. Rxf7 {[%clk 0:00:04]} 34... Kxf7 {[%clk
0:00:33.3]} 35. Bh5+ {[%clk 0:00:04.6]} 35... Ke7 {[%clk 0:00:34]} 36. Bc5+
{[%clk 0:00:04.2]} 36... Kd7 {[%clk 0:00:34.7]} 37. Bxe8+ {[%clk 0:00:04.4]}
37... Kxe8 {[%clk 0:00:35.6]} 38. g4 {[%clk 0:00:03.1]} 38... Bg5 {[%clk
0:00:35.9]} 39. Be3 {[%clk 0:00:03.1]} 39... Bxe3 {[%clk 0:00:29.9]} 40. fxe3
{[%clk 0:00:04]} 40... Kf7 {[%clk 0:00:30.2]} 41. Kg2 {[%clk 0:00:04.5]} 41...
Kf6 {[%clk 0:00:25.1]} 42. e4 {[%clk 0:00:04.7]} 42... Kg5 {[%clk 0:00:22.1]}
43. Kg3 {[%clk 0:00:04.9]} 43... h5 {[%clk 0:00:22.1]} 44. gxh5 {[%clk
0:00:05.1]} 44... Kxh5 {[%clk 0:00:23]} 45. Kh3 {[%clk 0:00:05.8]} 45... Kg5
{[%clk 0:00:23.8]} 46. Kg3 {[%clk 0:00:06.2]} 46... Kh5 {[%clk 0:00:24.5]} 47.
Kh3 {[%clk 0:00:06.6]} 47... Kg5 {[%clk 0:00:25.2]} 48. Kg3 {[%clk 0:00:07.3]}
48... Kh5 {[%clk 0:00:25.7]} 1/2-1/2

[Event "Late-Titled-Tuesday-Blitz-February-20-2024"]
[Site "Chess.com"]
[Date "2024.02.20"]
[Round "9"]
[White "LiemLe"]
[Black "TenisMaster"]
[Result "1/2-1/2"]
[WhiteElo "3049"]
[BlackElo "3002"]
[TimeControl "180+1"]
[EndTime "15:44:12 PST"]
[Termination "Game drawn by repetition"]

1. Nf3 {[%clk 0:03:00.9]} 1... d5 {[%clk 0:02:57.8]} 2. e3 {[%clk 0:03:00.6]}
2... Nf6 {[%clk 0:02:57.4]} 3. c4 {[%clk 0:03:01]} 3... c6 {[%clk 0:02:57.2]} 4.
Nc3 {[%clk 0:03:00.6]} 4... e6 {[%clk 0:02:56.7]} 5. b3 {[%clk 0:03:00.6]} 5...
Bd6 {[%clk 0:02:56.4]} 6. Bb2 {[%clk 0:03:00.9]} 6... O-O {[%clk 0:02:56.4]} 7.
Rc1 {[%clk 0:02:52.1]} 7... Nbd7 {[%clk 0:02:45.4]} 8. Be2 {[%clk 0:02:42.1]}
8... Qe7 {[%clk 0:02:41.3]} 9. O-O {[%clk 0:02:38.6]} 9... Ne4 {[%clk
0:02:06.4]} 10. Qc2 {[%clk 0:02:32.9]} 10... f5 {[%clk 0:02:02.1]} 11. d3 {[%clk
0:02:05.3]} 11... Ng5 {[%clk 0:01:56.5]} 12. Nxg5 {[%clk 0:01:52.5]} 12... Qxg5
{[%clk 0:01:57.4]} 13. f4 {[%clk 0:01:53]} 13... Qg6 {[%clk 0:01:54.2]} 14. Bf3
{[%clk 0:01:50.3]} 14... Nf6 {[%clk 0:01:53.5]} 15. Ne2 {[%clk 0:01:47.7]} 15...
Bd7 {[%clk 0:01:46.1]} 16. h3 {[%clk 0:01:45.3]} 16... Qh6 {[%clk 0:01:37.4]}
17. Qd2 {[%clk 0:01:35.3]} 17... Be8 {[%clk 0:01:32.6]} 18. Nd4 {[%clk
0:01:31.3]} 18... Bd7 {[%clk 0:01:26.9]} 19. b4 {[%clk 0:01:31.2]} 19... Rae8
{[%clk 0:01:26]} 20. Nb3 {[%clk 0:01:26.9]} 20... e5 {[%clk 0:01:23.3]} 21. fxe5
{[%clk 0:01:07.2]} 21... Bxe5 {[%clk 0:01:24.2]} 22. Bxe5 {[%clk 0:01:06.1]}
22... Rxe5 {[%clk 0:01:25.1]} 23. cxd5 {[%clk 0:00:59.8]} 23... cxd5 {[%clk
0:01:21.2]} 24. Rc7 {[%clk 0:00:49]} 24... Rxe3 {[%clk 0:01:08.9]} 25. Rxb7
{[%clk 0:00:44.3]} 25... a6 {[%clk 0:00:54.1]} 26. Bxd5+ {[%clk 0:00:33.4]}
26... Kh8 {[%clk 0:00:53.8]} 27. Nc5 {[%clk 0:00:22]} 27... Bc8 {[%clk
0:00:49.7]} 28. Rf7 {[%clk 0:00:19.7]} 28... Rd8 {[%clk 0:00:39.2]} 29. Bc4
{[%clk 0:00:19.3]} 29... f4 {[%clk 0:00:36.1]} 30. Qf2 {[%clk 0:00:19.1]} 30...
f3 {[%clk 0:00:35.4]} 31. Re1 {[%clk 0:00:17]} 31... Rxe1+ {[%clk 0:00:30.2]}
32. Qxe1 {[%clk 0:00:17.9]} 32... Qf4 {[%clk 0:00:24.5]} 33. Qe7 {[%clk
0:00:13.1]} 33... Qd4+ {[%clk 0:00:17.4]} 34. Kh2 {[%clk 0:00:12]} 34... f2
{[%clk 0:00:14.1]} 35. Rf8+ {[%clk 0:00:11.4]} 35... Ng8 {[%clk 0:00:04.6]} 36.
Qxd8 {[%clk 0:00:11.2]} 36... f1=N+ {[%clk 0:00:02.2]} 37. Kh1 {[%clk
0:00:05.2]} 37... Ng3+ {[%clk 0:00:02.8]} 38. Kh2 {[%clk 0:00:05.8]} 38... Nf1+
{[%clk 0:00:03.2]} 39. Kh1 {[%clk 0:00:05.7]} 39... Ng3+ {[%clk 0:00:03.8]} 40.
Kh2 {[%clk 0:00:06.3]} 40... Nf1+ {[%clk 0:00:03.9]} 1/2-1/2

[Event "Late-Titled-Tuesday-Blitz-February-20-2024"]
[Site "Chess.com"]
[Date "2024.02.20"]
[Round "9"]
[White "cthulhuuu"]
[Black "JackRodgers"]
[Result "0-1"]
[WhiteElo "2423"]
[BlackElo "2551"]
[TimeControl "180+1"]
[EndTime "15:44:12 PST"]
[Termination "JackRodgers won on time"]

1. e4 {[%clk 0:03:00.9]} 1... c5 {[%clk 0:02:58.2]} 2. Nf3 {[%clk 0:03:00.4]}
2... g6 {[%clk 0:02:54.2]} 3. g3 {[%clk 0:02:59.9]} 3... Bg7 {[%clk 0:02:53.8]}
4. Bg2 {[%clk 0:03:00.1]} 4... Nc6 {[%clk 0:02:54.7]} 5. O-O {[%clk 0:03:00.1]}
5... e6 {[%clk 0:02:54.1]} 6. d3 {[%clk 0:03:00.2]} 6... Nge7 {[%clk 0:02:54.3]}
7. Re1 {[%clk 0:03:00.2]} 7... O-O {[%clk 0:02:54.2]} 8. e5 {[%clk 0:03:00.6]}
8... d6 {[%clk 0:02:53.8]} 9. exd6 {[%clk 0:03:01.5]} 9... Qxd6 {[%clk
0:02:54.4]} 10. Nbd2 {[%clk 0:03:01.4]} 10... b6 {[%clk 0:02:53.5]} 11. Nc4
{[%clk 0:02:55.3]} 11... Qc7 {[%clk 0:02:51.4]} 12. Bf4 {[%clk 0:02:54.3]} 12...
Qd8 {[%clk 0:02:50.1]} 13. Nfe5 {[%clk 0:02:38.4]} 13... Bb7 {[%clk 0:02:46.4]}
14. Nd6 {[%clk 0:02:37.8]} 14... Qxd6 {[%clk 0:02:33.1]} 15. Nxc6 {[%clk
0:02:10.7]} 15... Qd7 {[%clk 0:02:22.3]} 16. Ne5 {[%clk 0:01:46.6]} 16... Qc8
{[%clk 0:02:16.8]} 17. Qd2 {[%clk 0:01:23.1]} 17... Bxg2 {[%clk 0:02:09]} 18.
Kxg2 {[%clk 0:01:24]} 18... Qb7+ {[%clk 0:02:08.8]} 19. f3 {[%clk 0:01:24.1]}
19... Nc6 {[%clk 0:02:08.6]} 20. Nxc6 {[%clk 0:00:55.8]} 20... Qxc6 {[%clk
0:02:09.5]} 21. Bh6 {[%clk 0:00:48.8]} 21... Bxb2 {[%clk 0:01:54.9]} 22. Bxf8
{[%clk 0:00:36]} 22... Bxa1 {[%clk 0:01:53.4]} 23. Bxc5 {[%clk 0:00:15.1]} 23...
Qxc5 {[%clk 0:01:49]} 24. Rxa1 {[%clk 0:00:14.3]} 24... Rc8 {[%clk 0:01:49.7]}
25. c4 {[%clk 0:00:13.5]} 25... Qd4 {[%clk 0:01:48.8]} 26. Rd1 {[%clk
0:00:13.2]} 26... b5 {[%clk 0:01:44]} 27. cxb5 {[%clk 0:00:09.2]} 27... Qa4
{[%clk 0:01:44.6]} 28. Rc1 {[%clk 0:00:08.3]} 28... Rxc1 {[%clk 0:01:44.5]} 29.
Qxc1 {[%clk 0:00:09.2]} 29... Qxa2+ {[%clk 0:01:42.5]} 30. Kh3 {[%clk
0:00:09.7]} 30... Qd5 {[%clk 0:01:40.9]} 31. Qc8+ {[%clk 0:00:09.1]} 31... Kg7
{[%clk 0:01:41.4]} 32. Qc3+ {[%clk 0:00:09.6]} 32... f6 {[%clk 0:01:41.6]} 33.
Qc7+ {[%clk 0:00:09]} 33... Kh6 {[%clk 0:01:33.2]} 34. Qf4+ {[%clk 0:00:09.1]}
34... Qg5 {[%clk 0:01:31.8]} 35. Qxg5+ {[%clk 0:00:03.5]} 35... Kxg5 {[%clk
0:01:32.7]} 36. d4 {[%clk 0:00:02]} 36... Kf5 {[%clk 0:01:28.5]} 37. Kg2 {[%clk
0:00:02.3]} 37... g5 {[%clk 0:01:24.7]} 38. Kf2 {[%clk 0:00:02.4]} 38... g4
{[%clk 0:01:24.4]} 39. Ke3 {[%clk 0:00:01.9]} 39... h5 {[%clk 0:01:22]} 40. f4
{[%clk 0:00:01.9]} 40... Kg6 {[%clk 0:01:18]} 41. Ke4 {[%clk 0:00:02.8]} 41...
Kf7 {[%clk 0:01:11.3]} 42. f5 {[%clk 0:00:02.5]} 42... Ke7 {[%clk 0:01:10.1]}
43. Kf4 {[%clk 0:00:01.9]} 43... Kd6 {[%clk 0:01:09.3]} 44. fxe6 {[%clk
0:00:02]} 44... Kxe6 {[%clk 0:01:10.2]} 45. Ke4 {[%clk 0:00:02.6]} 45... Kd6
{[%clk 0:00:51.9]} 46. Ke3 {[%clk 0:00:02]} 46... Kd5 {[%clk 0:00:51.9]} 47. Kd3
{[%clk 0:00:02.5]} 47... f5 {[%clk 0:00:51.1]} 48. Kc3 {[%clk 0:00:02.6]} 48...
f4 {[%clk 0:00:45.8]} 49. gxf4 {[%clk 0:00:03.5]} 49... h4 {[%clk 0:00:46.3]}
50. Kd3 {[%clk 0:00:03.7]} 50... g3 {[%clk 0:00:45.9]} 0-1

[Event "Late-Titled-Tuesday-Blitz-February-20-2024"]
[Site "Chess.com"]
[Date "2024.02.20"]
[Round "9"]
[White "lucliasco"]
[Black "Statham_01"]
[Result "1-0"]
[WhiteElo "2885"]
[BlackElo "2598"]
[TimeControl "180+1"]
[EndTime "15:44:13 PST"]
[Termination "lucliasco won by resignation"]

1. d4 {[%clk 0:03:00.9]} 1... e6 {[%clk 0:02:58.9]} 2. Nf3 {[%clk 0:02:58.5]}
2... b6 {[%clk 0:02:58.8]} 3. Bg5 {[%clk 0:02:58]} 3... Be7 {[%clk 0:02:57.7]}
4. Bxe7 {[%clk 0:02:58.1]} 4... Qxe7 {[%clk 0:02:58.6]} 5. c3 {[%clk 0:02:58.8]}
5... Bb7 {[%clk 0:02:58.7]} 6. Nbd2 {[%clk 0:02:57.4]} 6... f5 {[%clk
0:02:59.2]} 7. g3 {[%clk 0:02:56.8]} 7... Nf6 {[%clk 0:02:59.1]} 8. Bg2 {[%clk
0:02:56.8]} 8... d6 {[%clk 0:02:57.3]} 9. O-O {[%clk 0:02:57.1]} 9... Nbd7
{[%clk 0:02:56.7]} 10. Re1 {[%clk 0:02:56.7]} 10... Ne4 {[%clk 0:02:55]} 11.
Nxe4 {[%clk 0:02:54.8]} 11... Bxe4 {[%clk 0:02:37.7]} 12. Nd2 {[%clk 0:02:55.7]}
12... Bxg2 {[%clk 0:02:37]} 13. Kxg2 {[%clk 0:02:54.1]} 13... O-O {[%clk
0:02:37.4]} 14. e3 {[%clk 0:02:26.9]} 14... e5 {[%clk 0:02:31.6]} 15. Qb3+
{[%clk 0:02:22.1]} 15... Kh8 {[%clk 0:02:30.6]} 16. Qc4 {[%clk 0:02:22.6]} 16...
Nf6 {[%clk 0:02:23.3]} 17. dxe5 {[%clk 0:02:19.7]} 17... dxe5 {[%clk 0:02:18.6]}
18. Rad1 {[%clk 0:02:18.9]} 18... Rad8 {[%clk 0:02:06.9]} 19. Nf3 {[%clk
0:02:13.3]} 19... c5 {[%clk 0:01:49.9]} 20. a4 {[%clk 0:02:04.3]} 20... Qb7
{[%clk 0:01:36.3]} 21. Qe6 {[%clk 0:01:53.5]} 21... Rxd1 {[%clk 0:01:00.1]} 22.
Rxd1 {[%clk 0:01:49]} 22... f4 {[%clk 0:00:59.3]} 23. exf4 {[%clk 0:01:44.1]}
23... exf4 {[%clk 0:01:00.2]} 24. g4 {[%clk 0:01:44.3]} 24... h6 {[%clk
0:00:47.9]} 25. Rd6 {[%clk 0:01:27.4]} 25... Re8 {[%clk 0:00:30.2]} 26. Qf5
{[%clk 0:01:27.5]} 26... Qe7 {[%clk 0:00:22.1]} 27. Rd1 {[%clk 0:01:22.5]} 27...
Qe2 {[%clk 0:00:19.1]} 28. Re1 {[%clk 0:01:19.9]} 28... Qc4 {[%clk 0:00:06.5]}
29. Rxe8+ {[%clk 0:01:17.4]} 29... Nxe8 {[%clk 0:00:07.4]} 30. Qf8+ {[%clk
0:01:16.4]} 30... Qg8 {[%clk 0:00:08]} 31. Qxf4 {[%clk 0:01:17]} 31... Nf6
{[%clk 0:00:08.5]} 32. c4 {[%clk 0:01:04.4]} 32... Qe8 {[%clk 0:00:08.7]} 33. b3
{[%clk 0:01:01.1]} 33... Qe2 {[%clk 0:00:07.8]} 34. h4 {[%clk 0:00:53]} 34...
Qe6 {[%clk 0:00:07.3]} 35. Ne5 {[%clk 0:00:50.2]} 35... Nd7 {[%clk 0:00:04.2]}
36. Nxd7 {[%clk 0:00:46.4]} 36... Qxd7 {[%clk 0:00:05.1]} 37. Qf8+ {[%clk
0:00:45.6]} 37... Kh7 {[%clk 0:00:05.7]} 38. Qf5+ {[%clk 0:00:46]} 38... Qxf5
{[%clk 0:00:06.2]} 39. gxf5 {[%clk 0:00:46.9]} 39... Kg8 {[%clk 0:00:06.4]} 40.
Kf3 {[%clk 0:00:47.2]} 40... Kf7 {[%clk 0:00:07.1]} 41. Ke4 {[%clk 0:00:46.6]}
41... Kf6 {[%clk 0:00:05.6]} 42. Kf4 {[%clk 0:00:46.4]} 42... h5 {[%clk
0:00:04]} 43. Ke4 {[%clk 0:00:46.2]} 43... a6 {[%clk 0:00:02.5]} 44. Kf4 {[%clk
0:00:46.2]} 44... Kf7 {[%clk 0:00:02]} 45. Kg5 {[%clk 0:00:45.7]} 45... Ke7
{[%clk 0:00:01.6]} 46. Kxh5 {[%clk 0:00:46]} 46... Kf6 {[%clk 0:00:02.5]} 47.
Kg4 {[%clk 0:00:46.7]} 47... b5 {[%clk 0:00:02.9]} 48. axb5 {[%clk 0:00:45.5]}
48... axb5 {[%clk 0:00:02.5]} 49. cxb5 {[%clk 0:00:46.4]} 49... c4 {[%clk
0:00:03.4]} 50. bxc4 {[%clk 0:00:46.2]} 1-0

[Event "Late-Titled-Tuesday-Blitz-February-20-2024"]
[Site "Chess.com"]
[Date "2024.02.20"]
[Round "9"]
[White "karinachess1"]
[Black "ExchangeAB"]
[Result "0-1"]
[WhiteElo "2649"]
[BlackElo "2489"]
[TimeControl "180+1"]
[EndTime "15:44:18 PST"]
[Termination "ExchangeAB won by resignation"]

1. d4 {[%clk 0:03:00.9]} 1... d5 {[%clk 0:02:59.9]} 2. c4 {[%clk 0:03:01.2]}
2... c6 {[%clk 0:03:00.3]} 3. Nf3 {[%clk 0:03:01.1]} 3... Nf6 {[%clk 0:03:00.4]}
4. g3 {[%clk 0:03:01.5]} 4... Bf5 {[%clk 0:03:00.1]} 5. Qb3 {[%clk 0:03:00]}
5... Qb6 {[%clk 0:02:59.9]} 6. Nc3 {[%clk 0:03:00.4]} 6... e6 {[%clk 0:02:58.4]}
7. c5 {[%clk 0:03:00.7]} 7... Qc7 {[%clk 0:02:46.5]} 8. Bf4 {[%clk 0:03:00.4]}
8... Qc8 {[%clk 0:02:47]} 9. Nh4 {[%clk 0:03:00.7]} 9... Bg4 {[%clk 0:02:41.5]}
10. h3 {[%clk 0:02:38.4]} 10... Bh5 {[%clk 0:02:41.5]} 11. g4 {[%clk 0:02:38.5]}
11... Bg6 {[%clk 0:02:41.1]} 12. Nxg6 {[%clk 0:02:38.8]} 12... hxg6 {[%clk
0:02:42]} 13. Bg2 {[%clk 0:02:39.4]} 13... Nbd7 {[%clk 0:02:37.8]} 14. Qc2
{[%clk 0:02:38]} 14... Be7 {[%clk 0:02:33.9]} 15. O-O {[%clk 0:02:34.8]} 15...
Bd8 {[%clk 0:02:32.6]} 16. f3 {[%clk 0:02:14.8]} 16... Bc7 {[%clk 0:02:32.1]}
17. Qd2 {[%clk 0:02:12.4]} 17... Bxf4 {[%clk 0:02:29.6]} 18. Qxf4 {[%clk
0:02:13.3]} 18... Qb8 {[%clk 0:02:30]} 19. Qxb8+ {[%clk 0:02:02.9]} 19... Rxb8
{[%clk 0:02:30.9]} 20. e4 {[%clk 0:02:03.4]} 20... dxe4 {[%clk 0:02:16]} 21.
fxe4 {[%clk 0:02:02.7]} 21... e5 {[%clk 0:02:16.5]} 22. dxe5 {[%clk 0:01:20.8]}
22... Nxe5 {[%clk 0:02:16.5]} 23. Rad1 {[%clk 0:01:20.9]} 23... Ke7 {[%clk
0:02:10.7]} 24. b4 {[%clk 0:00:58.6]} 24... Rhd8 {[%clk 0:02:09.6]} 25. a4
{[%clk 0:00:58.4]} 25... Rd7 {[%clk 0:02:00.1]} 26. Rxd7+ {[%clk 0:00:56.6]}
26... Nfxd7 {[%clk 0:02:01]} 27. Rd1 {[%clk 0:00:53]} 27... a5 {[%clk
0:01:55.9]} 28. bxa5 {[%clk 0:00:44.4]} 28... Nxc5 {[%clk 0:01:55.7]} 29. Bf1
{[%clk 0:00:27.8]} 29... Ra8 {[%clk 0:01:55]} 30. a6 {[%clk 0:00:23.8]} 30...
Nxa6 {[%clk 0:01:54.1]} 31. Bxa6 {[%clk 0:00:23.7]} 31... Rxa6 {[%clk
0:01:53.8]} 32. Rb1 {[%clk 0:00:24.2]} 32... b6 {[%clk 0:01:48.6]} 33. Kf2
{[%clk 0:00:23.2]} 33... Nd3+ {[%clk 0:01:45.3]} 34. Ke3 {[%clk 0:00:23.1]}
34... Nc5 {[%clk 0:01:45.5]} 35. h4 {[%clk 0:00:18.9]} 35... Kd6 {[%clk
0:01:37.8]} 36. g5 {[%clk 0:00:17.4]} 36... Nxa4 {[%clk 0:01:33]} 37. Nxa4
{[%clk 0:00:12.9]} 37... Rxa4 {[%clk 0:01:33.9]} 38. Rxb6 {[%clk 0:00:13.4]}
38... Ra3+ {[%clk 0:01:32.9]} 39. Kf4 {[%clk 0:00:13.1]} 39... Ra1 {[%clk
0:01:30.7]} 40. Rb7 {[%clk 0:00:12]} 40... Rf1+ {[%clk 0:01:30.2]} 41. Ke3
{[%clk 0:00:09.7]} 41... c5 {[%clk 0:01:23.1]} 42. Kd3 {[%clk 0:00:10.2]} 42...
Ke5 {[%clk 0:01:17.1]} 43. Re7+ {[%clk 0:00:09.7]} 43... Kd6 {[%clk 0:01:17.3]}
44. Rb7 {[%clk 0:00:08.2]} 44... Ke6 {[%clk 0:01:17.5]} 45. Ke3 {[%clk
0:00:05.7]} 45... Re1+ {[%clk 0:01:04.7]} 46. Kf4 {[%clk 0:00:05.6]} 46... Rd1
{[%clk 0:01:01.2]} 47. Rb6+ {[%clk 0:00:05.6]} 47... Rd6 {[%clk 0:01:00.7]} 48.
Rb8 {[%clk 0:00:06]} 48... Rc6 {[%clk 0:00:59.2]} 49. Rb3 {[%clk 0:00:06.1]}
49... c4 {[%clk 0:00:59.6]} 50. Rc3 {[%clk 0:00:06.9]} 50... Rc5 {[%clk
0:00:59.2]} 51. Rc1 {[%clk 0:00:03.5]} 51... c3 {[%clk 0:00:59.6]} 52. Ke3
{[%clk 0:00:03.8]} 52... c2 {[%clk 0:00:59.6]} 53. Kd3 {[%clk 0:00:04.2]} 53...
Ke5 {[%clk 0:00:59.7]} 54. Ke3 {[%clk 0:00:03.3]} 54... Rc3+ {[%clk 0:00:59.6]}
55. Kd2 {[%clk 0:00:03.5]} 55... Rc8 {[%clk 0:00:59.4]} 56. Ke3 {[%clk
0:00:03.6]} 56... Rc7 {[%clk 0:01:00]} 57. Kd3 {[%clk 0:00:03.7]} 57... Kf4
{[%clk 0:00:59.4]} 58. Kd4 {[%clk 0:00:02.8]} 58... Rd7+ {[%clk 0:00:59]} 59.
Kc5 {[%clk 0:00:03.4]} 59... Kxe4 {[%clk 0:00:58.9]} 60. Kc6 {[%clk 0:00:04]}
60... Rd8 {[%clk 0:00:58]} 61. Kc7 {[%clk 0:00:04.3]} 61... Rd2 {[%clk 0:00:58]}
62. Kc6 {[%clk 0:00:03.4]} 62... Kd3 {[%clk 0:00:58.2]} 63. Kc5 {[%clk
0:00:03.8]} 63... Rd1 {[%clk 0:00:58.7]} 0-1